bitfinex/quotes_BTCUSD_20220405
["timestamp","ask_amount","ask_price","bid_price","bid_amount"]
[1649174671103,0.054765,45662.0,45654.0,0.054766]
[1649174671300,0.04024909,45662.0,45654.0,0.054766]
[1649174671404,0.04024909,45662.0,45652.0,0.054766]
[1649174671863,0.04024909,45662.0,45652.0,0.31276569]
[1649174671962,0.05,45661.0,45652.0,0.31276569]
[1649174672066,0.05,45661.0,45653.0,0.00547624]
[1649174672666,0.05,45661.0,45652.0,0.63271074]
[1649174672667,0.05,45661.0,45654.0,0.054766]
[1649174672765,0.05,45661.0,45656.0,0.054756]
[1649174672867,0.01341282,45657.0,45656.0,0.054756]
[1649174673265,0.00358515,45657.0,45656.0,0.054756]
[1649174673367,0.00355045,45657.0,45656.0,0.054756]
[1649174673570,0.00355045,45657.0,45654.0,0.054766]
[1649174673667,0.07489668,45662.0,45654.0,0.054766]
[1649174673768,0.07489668,45662.0,45652.0,0.25799969]
[1649174673769,0.01095,45661.0,45652.0,0.25799969]
[1649174673868,0.01095,45661.0,45653.0,0.054764]
[1649174673970,0.2775619,45658.0,45653.0,0.054764]
[1649174674469,0.0437,45660.0,45653.0,0.109524]
[1649174674873,0.0437,45660.0,45653.0,0.209524]
[1649174675420,0.0437,45660.0,45655.0,0.30994164]
[1649174675614,0.00355045,45656.0,45655.0,0.109504]
[1649174675797,0.06095,45661.0,45655.0,0.109504]
[1649174675901,0.05,45661.0,45656.0,0.3]
[1649174676014,0.07539905,45662.0,45656.0,0.3]
[1649174676102,0.07539905,45662.0,45657.0,0.054732]
[1649174676205,0.15662188,45658.0,45657.0,0.054732]
[1649174676301,0.15662188,45658.0,45657.0,0.54948479]
[1649174676401,0.15662188,45658.0,45657.0,0.64948479]
[1649174676500,0.07539905,45662.0,45657.0,0.64948479]
[1649174676706,0.15673242,45665.0,45658.0,0.2975662]
[1649174676901,0.15673242,45665.0,45660.0,0.33255948]
[1649174677000,0.00051486,45662.0,45661.0,0.409473]
[1649174677101,0.17051486,45662.0,45661.0,0.409473]
[1649174677304,0.17051486,45662.0,45661.0,0.459473]
[1649174677904,0.17,45662.0,45661.0,0.459473]
[1649174678104,0.15673242,45665.0,45661.0,0.459473]
[1649174678105,0.15673242,45665.0,45661.0,0.559473]
[1649174678204,0.15673242,45665.0,45661.0,0.679907]
[1649174678308,0.15673242,45665.0,45662.0,0.10948]
[1649174678506,0.15673242,45665.0,45663.0,0.05]
[1649174678610,0.15673242,45665.0,45664.0,0.3]
[1649174678706,0.15673242,45665.0,45663.0,0.05]
[1649174679488,0.15673242,45665.0,45662.0,0.05]
[1649174679588,0.15673242,45665.0,45659.0,0.45915164]
[1649174680190,0.15673242,45665.0,45659.0,0.46791164]
[1649174680392,0.15673242,45665.0,45660.0,0.109494]
[1649174680589,0.0005224,45664.0,45661.0,0.05]
[1649174681241,0.0005224,45664.0,45661.0,0.06095]
[1649174681342,0.0005224,45664.0,45662.0,0.33401953]
[1649174681445,0.0005224,45664.0,45661.0,0.06095]
[1649174681645,0.15673242,45665.0,45661.0,0.27992]
[1649174681848,0.15725482,45665.0,45661.0,0.27992]
[1649174681943,0.15725482,45665.0,45662.0,0.05]
[1649174682746,0.15673242,45665.0,45662.0,0.05]
[1649174683412,0.15673242,45665.0,45660.0,0.01095]
[1649174684162,0.15673242,45665.0,45662.0,0.054741]
[1649174684312,0.15725443,45665.0,45662.0,0.26421]
[1649174685213,0.15673242,45665.0,45662.0,0.26421]
[1649174685313,0.15673242,45665.0,45664.0,0.05]
[1649174686315,0.16781858,45665.0,45664.0,0.05]
[1649174686521,0.16281858,45665.0,45664.0,0.05]
[1649174687063,0.16271858,45665.0,45664.0,0.05]
[1649174687259,0.16271858,45665.0,45663.0,0.12741362]
[1649174687359,0.01108689,45664.0,45663.0,0.12741362]
[1649174687460,0.0110864,45664.0,45663.0,0.11741362]
[1649174687763,0.14068312,45665.0,45663.0,0.11741362]
[1649174687861,0.14068312,45665.0,45663.0,0.35759271]
[1649174687958,0.14068312,45665.0,45663.0,0.11741362]
[1649174688059,0.14068312,45665.0,45663.0,0.21741362]
[1649174688964,0.14068312,45665.0,45663.0,0.21647762]
[1649174689065,0.14068312,45665.0,45663.0,0.11647762]
[1649174689165,0.14068312,45665.0,45664.0,0.05]
[1649174692158,0.14068312,45665.0,45664.0,0.30914252]
[1649174692360,0.14068312,45665.0,45664.0,0.40914252]
[1649174693354,0.14068312,45665.0,45664.0,0.38183252]
[1649174693455,0.14068312,45665.0,45664.0,0.35914252]
[1649174693555,0.14068312,45665.0,45664.0,0.25914252]
[1649174693655,0.14068312,45665.0,45664.0,0.35914252]
[1649174694256,0.14068312,45665.0,45664.0,0.1]
[1649174694670,0.14068312,45665.0,45663.0,0.12742762]
[1649174695164,0.14068312,45665.0,45664.0,0.05]
[1649174695768,0.13068312,45665.0,45664.0,0.05]
[1649174695868,0.12568312,45665.0,45664.0,0.05]
[1649174696772,0.13676891,45665.0,45664.0,0.05]
[1649174697772,0.13676891,45665.0,45662.0,0.05742762]
[1649174697874,0.12568312,45665.0,45664.0,0.05]
[1649174697973,0.13676891,45665.0,45663.0,0.01095]
[1649174698107,0.01108579,45664.0,45663.0,0.01095]
[1649174698309,0.12568312,45665.0,45663.0,0.06315828]
[1649174698406,0.01108579,45664.0,45663.0,0.06315828]
[1649174698505,0.01108579,45664.0,45663.0,0.05220828]
[1649174699811,0.12568312,45665.0,45663.0,0.05220828]
[1649174700012,0.12568312,45665.0,45664.0,0.27548169]
[1649174700214,0.12568312,45665.0,45664.0,0.37548169]
[1649174700312,0.12568312,45665.0,45664.0,0.47548169]
[1649174700620,0.12568312,45665.0,45664.0,0.74068663]
[1649174701013,0.12568312,45665.0,45664.0,0.90912572]
[1649174701214,0.12568312,45665.0,45664.0,0.74068663]
[1649174701313,0.12568312,45665.0,45664.0,0.47548169]
[1649174701909,0.29568312,45665.0,45664.0,0.47548169]
[1649174702012,0.12568312,45665.0,45664.0,0.47548169]
[1649174702313,0.12568312,45665.0,45664.0,0.7519798]
[1649174702911,0.12568312,45665.0,45664.0,0.47548169]
[1649174703910,0.12568312,45665.0,45664.0,0.73111426]
[1649174704111,0.12568312,45665.0,45664.0,0.47548169]
[1649174705010,0.12568312,45665.0,45664.0,0.7550949]
[1649174705108,0.12568312,45665.0,45664.0,0.47548169]
[1649174706201,0.12568312,45665.0,45664.0,0.81315642]
[1649174706453,0.12568312,45665.0,45664.0,0.46440369]
[1649174706653,0.12568312,45665.0,45664.0,0.70357501]
[1649174707704,0.12568312,45665.0,45664.0,0.9603635]
[1649174708007,0.12568312,45665.0,45664.0,0.70357501]
[1649174708506,0.12568312,45665.0,45664.0,0.87395998]
[1649174708606,0.12568312,45665.0,45664.0,1.23583369]
[1649174708961,0.12568312,45665.0,45664.0,1.57226269]
[1649174709258,0.12568312,45665.0,45664.0,1.40187772]
[1649174709405,0.12568312,45665.0,45664.0,1.04000401]
[1649174710356,0.12568312,45665.0,45664.0,1.40198488]
[1649174710657,0.12568312,45665.0,45664.0,1.60395243]
[1649174711408,0.12568312,45665.0,45664.0,1.24197156]
[1649174711508,0.12568312,45665.0,45664.0,1.04000401]
[1649174711907,0.12568312,45665.0,45664.0,0.71452501]
[1649174712412,0.12568312,45665.0,45664.0,1.0502692]
[1649174712708,0.12568312,45665.0,45664.0,1.3757482]
[1649174713010,0.12568312,45665.0,45664.0,1.04000401]
[1649174713427,0.12568312,45665.0,45664.0,1.2965175]
[1649174713629,0.00045866,45667.0,45664.0,1.47560351]
[1649174713733,0.00045866,45667.0,45665.0,0.33700381]
[1649174713830,0.0909091,45677.0,45666.0,1.25680529]
[1649174713929,0.0909091,45677.0,45670.0,0.325479]
[1649174714031,0.0909091,45677.0,45671.0,0.25679349]
[1649174714133,0.0909091,45677.0,45672.0,0.325479]
[1649174714228,0.0909091,45677.0,45672.0,0.369179]
[1649174714329,0.0909091,45677.0,45673.0,0.01095]
[1649174714428,0.0909091,45677.0,45674.0,0.325479]
[1649174714528,0.00054756,45675.0,45674.0,0.375479]
[1649174714627,0.00054756,45675.0,45674.0,0.475479]
[1649174714729,0.00054756,45675.0,45674.0,0.43579903]
[1649174715228,0.00054756,45675.0,45674.0,0.48799482]
[1649174715429,0.00054756,45675.0,45674.0,0.25219579]
[1649174715626,0.00054756,45675.0,45674.0,0.15219579]
[1649174716327,0.26240535,45675.0,45674.0,0.15219579]
[1649174716628,0.26240535,45675.0,45674.0,0.10219579]
[1649174716873,0.00054756,45675.0,45674.0,0.05219579]
[1649174716971,0.00054756,45675.0,45674.0,0.10219579]
[1649174717319,0.00054756,45675.0,45674.0,0.05219579]
[1649174717419,0.00054756,45675.0,45674.0,0.10219579]
[1649174718228,0.00054756,45675.0,45674.0,0.05219579]
[1649174718325,0.00054756,45675.0,45674.0,0.10219579]
[1649174718724,0.00054756,45675.0,45674.0,0.05219579]
[1649174718825,0.00054756,45675.0,45674.0,0.10219579]
[1649174719126,0.00054756,45675.0,45674.0,0.05219579]
[1649174719327,0.00054756,45675.0,45674.0,0.10219579]
[1649174719525,0.23415,45676.0,45674.0,0.10219579]
[1649174719626,0.16945244,45675.0,45674.0,0.10219579]
[1649174720229,0.16945244,45675.0,45674.0,0.05219579]
[1649174720328,0.16945244,45675.0,45674.0,0.10219579]
[1649174720531,0.67939628,45675.0,45674.0,0.05219579]
[1649174720634,0.87939628,45675.0,45674.0,0.05219579]
[1649174720750,0.72102915,45675.0,45674.0,9.579e-05]
[1649174720844,0.72102915,45675.0,45662.0,0.00045072]
[1649174720937,0.46697156,45672.0,45662.0,0.00045072]
[1649174721039,0.01095,45671.0,45662.0,0.00045072]
[1649174721135,0.35686732,45671.0,45662.0,0.03639966]
[1649174721239,0.62383888,45671.0,45662.0,0.03639966]
[1649174721534,0.15529384,45670.0,45662.0,0.03639966]
[1649174721633,0.27770077,45667.0,45662.0,0.03639966]
[1649174721741,0.27770077,45667.0,45662.0,0.03594894]
[1649174721742,0.01095,45667.0,45662.0,0.03594894]
[1649174721835,0.05465,45668.0,45662.0,0.03594894]
[1649174721934,0.05465,45668.0,45662.0,0.09069294]
[1649174722037,0.01095,45668.0,45662.0,0.09069294]
[1649174722137,0.0437,45668.0,45662.0,0.054744]
[1649174722234,0.01095,45667.0,45662.0,0.054744]
[1649174722540,0.0437,45673.0,45662.0,0.054744]
[1649174722639,0.01095,45672.0,45665.0,0.26308853]
[1649174722741,0.01095,45672.0,45667.0,0.26058457]
[1649174722840,0.01108507,45668.0,45667.0,0.31058457]
[1649174723286,0.01108507,45668.0,45667.0,0.05]
[1649174723390,0.01108507,45668.0,45666.0,0.05]
[1649174723488,1.72192941,45676.0,45671.0,0.02307809]
[1649174723586,0.15836737,45672.0,45671.0,0.02307809]
[1649174723688,0.01108507,45672.0,45671.0,0.02307809]
[1649174723788,0.02203507,45672.0,45671.0,0.02307809]
[1649174724239,0.01108507,45672.0,45671.0,0.02307809]
[1649174724360,0.01108507,45672.0,45671.0,0.323932]
[1649174724460,0.01108507,45672.0,45671.0,0.02307809]
[1649174725865,0.08424515,45677.0,45676.0,0.26544247]
[1649174725967,0.08424515,45677.0,45675.0,0.054726]
[1649174726167,0.1472823,45676.0,45675.0,0.054726]
[1649174726667,0.08424515,45677.0,45675.0,0.054726]
[1649174726777,0.00054768,45676.0,45675.0,0.054726]
[1649174727365,0.00054768,45676.0,45675.0,0.28314983]
[1649174727467,0.00054768,45676.0,45675.0,0.57003946]
[1649174727571,0.00054768,45676.0,45675.0,0.67003946]
[1649174727666,0.08424515,45677.0,45675.0,0.67003946]
[1649174727667,0.08424515,45677.0,45675.0,0.99551846]
[1649174727770,0.08424515,45677.0,45675.0,0.67003946]
[1649174727771,0.00054751,45676.0,45675.0,0.67003946]
[1649174727867,0.00054751,45676.0,45675.0,0.99551846]
[1649174728224,0.00054751,45676.0,45675.0,0.67003946]
[1649174728337,0.48488965,45695.0,45676.0,1.85]
[1649174728429,0.5,45700.0,45684.0,1.59086705]
[1649174728530,0.65657,45699.0,45696.0,1.59086705]
[1649174728686,0.65657,45699.0,45697.0,2.2168188]
[1649174728775,0.65657,45699.0,45698.0,1.90180705]
[1649174728883,0.65657,45699.0,45698.0,0.636419]
[1649174728980,0.65657,45699.0,45698.0,0.736419]
[1649174729077,0.65657,45699.0,45698.0,0.46094]
[1649174729177,0.65657,45699.0,45698.0,0.15]
[1649174729275,0.65657,45699.0,45698.0,0.05]
[1649174729377,0.75647,45699.0,45698.0,0.05]
[1649174729577,0.75647,45699.0,45691.0,0.3]
[1649174729676,0.75647,45699.0,45694.0,0.054711]
[1649174729777,0.65657,45699.0,45695.0,0.3]
[1649174729880,0.65657,45699.0,45694.0,0.1]
[1649174730028,0.65657,45699.0,45692.0,0.008754]
[1649174730427,0.65657,45699.0,45694.0,0.22437558]
[1649174730578,0.65537483,45699.0,45695.0,0.3]
[1649174730776,0.01107766,45696.0,45695.0,0.3]
[1649174731278,0.01107766,45696.0,45694.0,0.37437558]
[1649174731427,0.65537483,45699.0,45695.0,0.3]
[1649174731529,0.14673479,45696.0,45695.0,0.3]
[1649174731860,0.14673479,45696.0,45694.0,0.37437558]
[1649174731960,0.00052098,45697.0,45694.0,0.27437558]
[1649174732061,0.00052098,45697.0,45694.0,0.37437558]
[1649174732164,0.00052098,45697.0,45694.0,0.15]
[1649174732761,0.65537483,45699.0,45694.0,0.15]
[1649174732911,0.65537483,45699.0,45689.0,0.1]
[1649174732912,0.22282513,45698.0,45689.0,0.1]
[1649174733010,0.2233461,45698.0,45688.0,0.02490313]
[1649174733110,0.2233461,45698.0,45689.0,0.109424]
[1649174733111,0.15582786,45692.0,45689.0,0.109424]
[1649174733314,0.2233461,45698.0,45689.0,0.409424]
[1649174733462,0.00052097,45698.0,45689.0,0.409424]
[1649174733862,0.00052097,45698.0,45689.0,0.354713]
[1649174733965,0.66631483,45699.0,45689.0,0.3]
[1649174734214,0.00052098,45696.0,45689.0,0.3]
[1649174734312,0.00052098,45696.0,45688.0,0.209418]
[1649174734414,0.00052098,45696.0,45688.0,0.109418]
[1649174735115,0.66631483,45699.0,45688.0,0.109418]
[1649174735221,0.66631483,45699.0,45694.0,0.24132167]
[1649174735616,0.66631483,45699.0,45689.0,0.32490199]
[1649174735715,0.66631483,45699.0,45689.0,0.42490199]
[1649174735818,0.66631483,45699.0,45690.0,0.05471]
[1649174736569,0.15933549,45693.0,45691.0,0.054708]
[1649174736666,0.00048229,45697.0,45691.0,0.054708]
[1649174737422,0.30947731,45696.0,45690.0,0.05471]
[1649174737669,0.66631483,45699.0,45690.0,0.05471]
[1649174737772,0.18479314,45695.0,45690.0,0.05471]
[1649174737869,0.66631483,45699.0,45690.0,0.05471]
[1649174737971,0.66631483,45699.0,45690.0,0.109418]
[1649174738170,0.00048229,45696.0,45690.0,0.109418]
[1649174738270,0.00048229,45696.0,45691.0,0.109411]
[1649174738372,0.00048229,45696.0,45691.0,0.159411]
[1649174738772,0.65537483,45699.0,45691.0,0.159411]
[1649174738870,0.81399823,45699.0,45691.0,0.159411]
[1649174739363,0.00048229,45696.0,45691.0,0.149411]
[1649174740060,0.81399823,45699.0,45691.0,0.149411]
[1649174740159,0.65537483,45699.0,45691.0,0.149411]
[1649174740260,0.00048173,45696.0,45691.0,0.149411]
[1649174740459,0.00048173,45696.0,45691.0,0.313494]
[1649174740660,0.00048173,45696.0,45691.0,0.413494]
[1649174740760,0.00048173,45696.0,45692.0,0.2941744]
[1649174740863,0.00048173,45696.0,45692.0,0.3441744]
[1649174740962,0.00048173,45696.0,45692.0,0.4441744]
[1649174741165,0.00048173,45696.0,45692.0,0.3941744]
[1649174741265,0.65537483,45699.0,45692.0,0.3941744]
[1649174741368,0.65537483,45699.0,45695.0,0.28461916]
[1649174741463,0.14673479,45696.0,45695.0,0.38931616]
[1649174741664,0.14673479,45696.0,45695.0,0.48931616]
[1649174742064,0.14673479,45696.0,45695.0,0.53931616]
[1649174742265,0.14673479,45696.0,45695.0,0.309394]
[1649174742666,0.14673479,45696.0,45695.0,0.209394]
[1649174742766,0.14673479,45696.0,45695.0,0.309394]
[1649174744914,0.14673479,45696.0,45695.0,0.209394]
[1649174745015,0.14673479,45696.0,45695.0,0.309394]
[1649174745716,0.14673479,45696.0,45695.0,0.254697]
[1649174746065,0.14673479,45696.0,45695.0,0.154697]
[1649174746767,0.14673479,45696.0,45695.0,0.1]
[1649174746866,0.14673479,45696.0,45692.0,0.44639668]
[1649174746967,0.00051276,45698.0,45692.0,0.34639668]
[1649174747067,0.00051276,45698.0,45692.0,0.44639668]
[1649174747167,0.00051276,45698.0,45692.0,0.39639668]
[1649174747269,0.5,45700.0,45692.0,0.39639668]
[1649174747571,0.00027217,45696.0,45692.0,0.39639668]
[1649174748025,0.26856178,45696.0,45692.0,0.39639668]
[1649174748121,0.00027217,45696.0,45692.0,0.29639668]
[1649174748219,0.00027217,45696.0,45692.0,0.39639668]
[1649174748420,0.66747576,45700.0,45692.0,0.39639668]
[1649174748821,0.00025363,45696.0,45692.0,0.39639668]
[1649174748924,0.00025363,45696.0,45692.0,0.15]
[1649174749120,0.00025363,45696.0,45692.0,0.2]
[1649174749323,0.00025363,45696.0,45692.0,0.05]
[1649174749420,0.00025363,45696.0,45688.0,0.06094]
[1649174749421,0.00025363,45696.0,45688.0,0.11094]
[1649174749525,0.00025363,45696.0,45688.0,0.1]
[1649174749624,0.2189016,45697.0,45688.0,0.05]
[1649174749723,0.054722,45696.0,45688.0,0.1]
[1649174749823,0.054722,45696.0,45687.0,0.2]
[1649174749926,0.05497563,45696.0,45687.0,0.2]
[1649174750259,0.05497563,45696.0,45684.0,0.01246808]
[1649174750260,0.31613676,45687.0,45684.0,0.01246808]
[1649174750327,0.31613676,45687.0,45681.0,1.49478544]
[1649174750424,0.31613676,45687.0,45684.0,0.01094]
[1649174750532,0.36613676,45687.0,45682.0,0.01095]
[1649174750673,0.109448,45686.0,45682.0,0.01095]
[1649174750875,0.104723,45687.0,45683.0,0.325479]
[1649174750973,0.104723,45687.0,45681.0,1.49478544]
[1649174750974,0.05,45687.0,45684.0,0.336419]
[1649174751076,0.05,45687.0,45684.0,0.325479]
[1649174751175,0.05050428,45687.0,45684.0,0.325479]
[1649174751323,0.21936361,45687.0,45683.0,0.325479]
[1649174751423,0.05522685,45687.0,45685.0,0.22483854]
[1649174751521,0.00050428,45687.0,45686.0,0.325479]
[1649174751727,0.00050428,45687.0,45686.0,0.26085945]
[1649174752121,0.054706,45697.0,45686.0,0.26085945]
[1649174752228,0.0547034,45691.0,45686.0,0.26085945]
[1649174752524,0.00052281,45689.0,45686.0,0.26085945]
[1649174752929,0.00052281,45689.0,45687.0,0.325479]
[1649174753128,0.00052281,45689.0,45687.0,0.425479]
[1649174753229,0.00209078,45699.0,45687.0,0.425479]
[1649174753327,0.65940108,45700.0,45688.0,0.28375028]
[1649174753576,0.00209082,45699.0,45693.0,0.2870456]
[1649174753729,0.05470054,45696.0,45688.0,0.28364562]
[1649174753824,0.05470054,45696.0,45687.0,0.1]
[1649174753927,0.00209082,45699.0,45698.0,0.10940108]
[1649174754029,0.01316958,45699.0,45698.0,0.10940108]
[1649174754587,0.01107876,45699.0,45698.0,0.10940108]
[1649174757192,0.55,45700.0,45698.0,0.10940108]
[1649174757391,0.55,45700.0,45698.0,0.3430399]
[1649174758417,0.55,45700.0,45698.0,0.10940108]
[1649174759424,0.55,45700.0,45699.0,0.25642904]
[1649174761475,0.00050434,45702.0,45700.0,0.45]
[1649174761577,0.14673479,45701.0,45700.0,0.45]
[1649174761919,0.14673479,45701.0,45700.0,0.72598669]
[1649174762519,0.14673479,45701.0,45700.0,0.95074812]
[1649174762620,0.14673479,45701.0,45700.0,1.27622712]
[1649174762819,0.14673479,45701.0,45700.0,0.95074812]
[1649174763019,0.14673479,45701.0,45700.0,1.27622712]
[1649174763621,0.14673479,45701.0,45700.0,1.37622712]
[1649174765026,0.00049325,45703.0,45701.0,0.325479]
[1649174765277,0.01,45709.0,45701.0,0.425479]
[1649174765375,0.01,45709.0,45701.0,0.1]
[1649174765720,0.15535657,45708.0,45701.0,0.1]
[1649174766026,0.15535657,45708.0,45707.0,0.27416777]
[1649174766725,0.01,45709.0,45707.0,0.27416777]
[1649174766826,0.01,45709.0,45707.0,0.52360991]
[1649174767076,0.01,45709.0,45707.0,0.27416777]
[1649174767277,0.01,45709.0,45701.0,0.01094]
[1649174767376,0.0443904,45710.0,45702.0,0.8]
[1649174767477,0.0443904,45710.0,45703.0,0.01094]
[1649174767576,0.0443904,45710.0,45701.0,0.01094]
[1649174767676,0.15531571,45709.0,45701.0,0.01094]
[1649174767879,0.20999976,45709.0,45701.0,0.01094]
[1649174767980,0.000503,45708.0,45701.0,0.01094]
[1649174768081,0.000503,45708.0,45703.0,0.2982066]
[1649174768180,0.000503,45708.0,45704.0,0.01094]
[1649174768433,0.000503,45708.0,45706.0,0.23221613]
[1649174768931,0.05468405,45709.0,45706.0,0.23221613]
[1649174769130,0.0549526,45709.0,45706.0,0.23221613]
[1649174770167,0.05468405,45709.0,45706.0,0.23221613]
[1649174770267,0.054687,45708.0,45706.0,0.23221613]
[1649174770368,0.053977,45708.0,45706.0,0.23221613]
[1649174771270,0.05468405,45709.0,45706.0,0.23221613]
[1649174771519,0.0549526,45709.0,45706.0,0.23221613]
[1649174771771,0.00026855,45709.0,45706.0,0.23221613]
[1649174771968,0.00026855,45709.0,45707.0,0.325479]
[1649174772170,0.00026855,45709.0,45707.0,0.425479]
[1649174772470,0.0443904,45710.0,45707.0,0.425479]
[1649174772773,0.0443904,45710.0,45708.0,0.325479]
[1649174772869,0.0443904,45710.0,45708.0,0.425479]
[1649174772971,0.04491061,45710.0,45708.0,0.11094]
[1649174773122,0.04491061,45710.0,45709.0,0.325479]
[1649174773217,0.04491061,45710.0,45709.0,0.336419]
[1649174773322,0.04491061,45710.0,45709.0,0.436419]
[1649174773767,0.0443904,45710.0,45709.0,0.436419]
[1649174773968,0.0443904,45710.0,45709.0,0.11094]
[1649174774072,0.0443904,45710.0,45709.0,0.436419]
[1649174774477,0.0443904,45710.0,45709.0,0.11094]
[1649174774569,0.0443904,45710.0,45709.0,0.01094]
[1649174774770,0.0443904,45710.0,45707.0,0.01094]
[1649174775323,0.0443904,45710.0,45708.0,0.325479]
[1649174775418,0.0443904,45710.0,45709.0,0.01094]
[1649174775518,0.0443904,45710.0,45707.0,0.01094]
[1649174775621,0.0443904,45710.0,45708.0,0.325479]
[1649174775719,0.0443904,45710.0,45709.0,0.01094]
[1649174775819,0.0443904,45710.0,45709.0,0.336419]
[1649174775970,0.0443904,45710.0,45709.0,0.436419]
[1649174776170,0.0443904,45710.0,45709.0,0.11094]
[1649174776268,0.0443904,45710.0,45709.0,0.436419]
[1649174777431,0.0443904,45710.0,45709.0,0.11094]
[1649174777630,0.0443904,45710.0,45709.0,0.01094]
[1649174777732,0.0443904,45710.0,45707.0,0.01094]
[1649174779079,0.0443904,45710.0,45708.0,0.325479]
[1649174779179,0.0443904,45710.0,45709.0,0.01094]
[1649174779583,0.0990804,45710.0,45701.0,0.01094]
[1649174779682,0.0990804,45710.0,45700.0,0.4408]
[1649174779683,0.3,45709.0,45700.0,0.4408]
[1649174779884,0.46408766,45709.0,45700.0,0.12130684]
[1649174779982,0.17754162,45706.0,45700.0,0.12130684]
[1649174780081,0.10942,45707.0,45700.0,0.12130684]
[1649174780285,0.05,45706.0,45700.0,0.12130684]
[1649174780387,0.28854309,45706.0,45700.0,0.12130684]
[1649174780488,0.05,45706.0,45700.0,0.12130684]
[1649174780655,0.104705,45706.0,45700.0,0.12130684]
[1649174780941,0.05469742,45704.0,45700.0,0.12130684]
[1649174781145,0.05369742,45704.0,45700.0,0.12130684]
[1649174782048,0.00051997,45705.0,45700.0,0.12130684]
[1649174782146,0.05,45706.0,45700.0,0.12130684]
[1649174782245,0.05469045,45709.0,45700.0,0.12130684]
[1649174782345,0.05,45708.0,45700.0,0.12130684]
[1649174782445,0.1053304,45710.0,45700.0,0.12130684]
[1649174782546,0.00051998,45704.0,45700.0,0.12130684]
[1649174782996,0.08491038,45710.0,45700.0,0.12130684]
[1649174783902,0.0443904,45710.0,45701.0,0.01094]
[1649174783998,0.002,45715.0,45711.0,0.34245971]
[1649174784463,0.15521181,45714.0,45711.0,0.34245971]
[1649174785263,0.20521181,45714.0,45711.0,0.34245971]
[1649174785464,0.05,45714.0,45711.0,0.34245971]
[1649174785567,0.10716652,45715.0,45711.0,0.34245971]
[1649174785866,0.106684,45715.0,45711.0,0.34245971]
[1649174785967,0.27810133,45714.0,45711.0,0.34245971]
[1649174786466,0.26726216,45712.0,45711.0,0.34245971]
[1649174786667,0.31726216,45712.0,45711.0,0.34245971]
[1649174787319,0.32833643,45712.0,45711.0,0.34245971]
[1649174787418,0.48350837,45712.0,45711.0,0.34245971]
[1649174787620,0.21624621,45712.0,45711.0,0.34245971]
[1649174788267,0.21624573,45712.0,45711.0,0.34245971]
[1649174789117,0.16624573,45712.0,45711.0,0.34245971]
[1649174790168,0.21624573,45712.0,45711.0,0.34245971]
[1649174791170,0.21624573,45712.0,45711.0,0.0220559]
[1649174791672,0.53843474,45712.0,45700.0,0.12140684]
[1649174791778,0.05470584,45704.0,45700.0,0.12140684]
[1649174791923,0.10941184,45704.0,45700.0,0.12140684]
[1649174792861,0.16412084,45704.0,45700.0,0.12140684]
[1649174793162,0.46732288,45704.0,45700.0,0.12140684]
[1649174793263,0.16412084,45704.0,45700.0,0.12140684]
[1649174794264,0.43537326,45704.0,45700.0,0.12140684]
[1649174794468,0.16412084,45704.0,45700.0,0.12140684]
[1649174795468,0.10941184,45704.0,45700.0,0.12140684]
[1649174795710,0.10941184,45704.0,45701.0,0.22196306]
[1649174795813,0.10941184,45704.0,45700.0,0.22140684]
[1649174795912,0.10941184,45704.0,45700.0,0.12140684]
[1649174796014,0.054706,45704.0,45700.0,0.12140684]
[1649174796867,0.054706,45704.0,45702.0,0.28719613]
[1649174796965,0.054706,45704.0,45703.0,0.3]
[1649174797618,0.00048577,45706.0,45703.0,0.3]
[1649174797817,0.002,45717.0,45704.0,0.325479]
[1649174797920,0.002,45717.0,45703.0,0.3]
[1649174798016,0.002,45717.0,45706.0,0.054673]
[1649174798116,0.002,45717.0,45710.0,0.23218252]
[1649174798217,0.002,45717.0,45711.0,0.3]
[1649174798516,0.002,45717.0,45711.0,0.52452115]
[1649174798717,0.054676,45714.0,45711.0,0.52452115]
[1649174799469,0.054676,45714.0,45711.0,0.22452115]
[1649174799567,0.054676,45714.0,45712.0,0.3]
[1649174799870,0.054676,45714.0,45712.0,0.56735229]
[1649174799969,0.054676,45714.0,45713.0,0.3]
[1649174801071,0.002,45715.0,45713.0,0.3]
[1649174801170,0.002,45715.0,45713.0,0.48346138]
[1649174801322,0.002,45715.0,45714.0,0.3]
[1649174805668,0.002,45715.0,45714.0,0.625479]
[1649174805871,0.002,45715.0,45714.0,0.725479]
[1649174806072,0.002,45715.0,45714.0,0.4]
[1649174806172,0.002,45715.0,45714.0,0.725479]
[1649174806523,0.002,45715.0,45714.0,0.4]
[1649174806724,0.002,45715.0,45714.0,0.725479]
[1649174807075,0.002,45715.0,45714.0,0.736419]
[1649174807177,0.002,45715.0,45714.0,0.41094]
[1649174807275,0.002,45715.0,45714.0,0.736419]
[1649174807628,0.002,45717.0,45716.0,0.325479]
[1649174807726,0.002,45717.0,45716.0,0.715309]
[1649174807827,0.002,45717.0,45716.0,0.9942817]
[1649174807925,0.00246476,45717.0,45716.0,0.9942817]
[1649174808125,0.00154476,45717.0,45716.0,0.9942817]
[1649174808229,0.01385875,45724.0,45717.0,1.85]
[1649174808328,0.01385875,45724.0,45720.0,0.17888813]
[1649174808483,0.01385875,45724.0,45722.0,0.17888813]
[1649174808577,0.01385875,45724.0,45723.0,0.636419]
[1649174808677,0.012,45724.0,45723.0,0.636419]
[1649174808776,0.012,45724.0,45723.0,0.736419]
[1649174809729,0.0117,45724.0,45723.0,0.736419]
[1649174811378,0.0117,45724.0,45723.0,0.786419]
[1649174811978,0.0642005,45726.0,45725.0,0.325479]
[1649174811979,0.0579005,45726.0,45725.0,0.325479]
[1649174812079,0.0579005,45726.0,45725.0,0.636409]
[1649174812182,0.0579005,45726.0,45725.0,0.96401306]
[1649174812329,0.05738064,45726.0,45725.0,0.96401306]
[1649174812529,0.05764897,45726.0,45725.0,0.96401306]
[1649174813231,0.05764897,45726.0,45725.0,1.01865906]
[1649174813429,0.05738064,45726.0,45725.0,1.01865906]
[1649174814130,0.052,45728.0,45727.0,0.6679]
[1649174814234,0.052,45728.0,45727.0,1.07478]
[1649174814380,0.052,45728.0,45727.0,1.21848]
[1649174814476,0.052,45728.0,45727.0,1.543959]
[1649174814579,0.01093,45749.0,45739.0,0.13414629]
[1649174814676,0.01093,45749.0,45740.0,0.56088558]
[1649174814778,0.01093,45750.0,45741.0,0.3]